bitfinex-derivatives/quotes_ETHF0:USTF0_20240910
["timestamp","ask_amount","ask_price","bid_price","bid_amount"]
[1725953348319,1.53127062,2359.9,2359.5,0.42379]
[1725953348701,1.53127062,2359.9,2359.6,0.42377]
[1725953349320,1.10754062,2359.9,2359.7,0.42375]
[1725953349612,1.10754062,2359.9,2359.6,0.42376]
[1725953349613,0.42372,2359.9,2359.6,0.42376]
[1725953349910,0.42372,2359.9,2359.5,0.42378]
[1725953349911,0.42374,2359.8,2359.5,0.42378]
[1725953350215,1.10754062,2359.9,2359.4,3.25]
[1725953350216,1.53127062,2359.9,2359.6,0.42377]
[1725953350899,0.42373,2359.9,2359.6,0.42377]
[1725953351401,1.53127062,2359.9,2359.6,0.42377]
[1725953351607,0.42373,2359.9,2359.6,0.42377]
[1725953351809,1.53127062,2359.9,2359.6,0.42377]
[1725953352600,0.42374,2359.8,2359.6,0.42377]
[1725953352802,1.53128062,2359.8,2359.6,0.42377]
[1725953353001,1.53128062,2359.8,2359.5,3.07378]
[1725953353413,1.53128062,2359.8,2359.5,2.65]
[1725953353617,1.10754062,2359.6,2358.9,1.09268751]
[1725953353921,1.10754062,2359.6,2359.3,0.42383]
[1725953353922,1.53133062,2359.6,2359.3,0.42383]
[1725953356807,1.10754062,2359.5,2359.3,0.42383]
[1725953357722,1.53133062,2359.6,2359.3,0.42383]
[1725953358726,1.10754062,2359.5,2359.4,0.42381]
[1725953359027,2.21508125,2359.8,2359.4,7.55083788]
[1725953359028,1.10754062,2359.8,2359.4,7.55083788]
[1725953359219,1.10754062,2359.8,2359.7,3.07376]
[1725953359414,1.10754062,2359.9,2359.8,0.42373]
[1725953359615,5.11504597,2360.0,2359.7,7.31135]
[1725953359823,1.10754062,2359.9,2359.7,3.07375]
[1725953360125,1.10754062,2359.8,2359.7,3.07375]
[1725953360326,1.10754062,2359.8,2359.6,0.42376]
[1725953360519,1.53128062,2359.8,2359.6,0.42376]
[1725953360821,0.42377,2359.7,2359.5,2.65]
[1725953361028,1.10754062,2359.6,2359.4,0.4238]
[1725953361324,1.53132062,2359.6,2359.3,2.65]
[1725953361622,1.53132062,2359.6,2359.4,0.66248695]
[1725953361815,1.53132062,2359.6,2359.3,0.42382]
[1725953361816,1.10754062,2359.5,2359.3,0.42382]
[1725953362014,1.10754062,2359.5,2359.1,2.65]
[1725953362219,1.10754062,2359.5,2359.0,41.89268751]
[1725953362220,1.10754062,2359.4,2359.0,41.89268751]
[1725953362421,1.53136062,2359.4,2359.1,0.42386]
[1725953362919,1.10754062,2359.4,2359.2,0.42385]
[1725953363229,1.53135062,2359.4,2359.1,3.07385]
[1725953363423,1.10754062,2359.3,2359.1,3.07385]
[1725953365223,1.10754062,2359.3,2359.2,0.42385]
[1725953365822,1.53137062,2359.3,2359.1,3.07386]
[1725953366230,1.53137062,2359.3,2359.2,0.66254609]
[1725953367124,1.53137062,2359.3,2359.1,3.07386]
[1725953367425,1.53140062,2359.2,2359.0,0.42388]
[1725953367719,1.10754062,2359.2,2358.7,40.8]
[1725953367922,1.53140062,2359.1,2358.9,0.42388]
[1725953368123,1.53140062,2359.1,2359.0,0.42388]
[1725953368521,1.53140062,2359.1,2358.9,0.42389]
[1725953368522,0.42386,2359.1,2358.9,0.42389]
[1725953369022,1.53140062,2359.1,2359.0,0.42388]
[1725953369327,1.10754062,2359.1,2359.0,0.42388]
[1725953369626,1.10754062,2359.1,2358.6,44.50988]
[1725953369627,1.53140062,2359.1,2358.6,44.50988]
[1725953369923,1.53140062,2359.1,2358.9,0.42389]
[1725953370122,1.53140062,2359.1,2359.0,0.42388]
[1725953370324,1.53139062,2359.2,2359.0,0.42388]
[1725953371121,1.10754062,2359.1,2359.0,0.42388]
[1725953371321,1.53141062,2359.1,2358.9,0.4239]
[1725953371523,1.53141062,2359.1,2358.8,0.4239]
[1725953371725,1.90201062,2359.1,2358.8,0.4239]
[1725953372325,1.90201062,2359.1,2358.9,0.4239]
[1725953372520,1.90201062,2359.1,2358.8,0.42391]
[1725953372720,1.90201062,2359.1,2358.6,2.65]
[1725953372721,1.90201062,2359.1,2358.9,0.4239]
[1725953373035,1.90201062,2359.1,2358.8,0.4239]
[1725953373036,1.10754062,2359.0,2358.8,0.4239]
[1725953373426,1.90201062,2359.1,2358.9,0.4239]
[1725953373739,1.10754062,2359.2,2358.5,42.95259751]
[1725953373931,1.10754062,2359.1,2358.9,0.42389]
[1725953374234,1.10754062,2359.1,2358.9,0.4239]
[1725953374533,0.42387,2359.1,2358.8,0.42391]
[1725953374738,1.53141062,2359.1,2358.8,0.42391]
[1725953375426,1.10754062,2359.1,2358.3,1.09268751]
[1725953375634,1.10754062,2358.9,2358.6,0.42395]
[1725953375836,0.3839,2358.8,2358.6,0.42395]
[1725953376036,0.7523,2358.8,2358.6,0.42395]
[1725953376224,1.85984062,2358.8,2358.6,0.42395]
[1725953376426,0.7523,2358.8,2358.6,0.42395]
[1725953376841,0.7523,2358.8,2358.5,0.42396]
[1725953377335,0.3839,2358.8,2358.7,0.42394]
[1725953377546,1.93119062,2359.2,2358.7,2.65]
[1725953377835,1.10754062,2358.8,2358.3,40.8]
[1725953378036,1.53145062,2358.9,2358.5,0.42396]
[1725953378337,1.53147062,2358.8,2358.4,0.42398]
[1725953378636,0.42393,2358.8,2358.4,0.42398]
[1725953378839,0.42393,2358.8,2358.2,43.45]
[1725953379031,1.53145062,2358.9,2358.4,2.65]
[1725953379229,0.42392,2358.8,2358.5,0.42396]
[1725953379738,0.42394,2358.7,2358.4,0.42398]
[1725953379937,0.79254,2358.7,2358.4,0.42398]
[1725953380838,0.79254,2358.7,2358.4,0.42399]
[1725953381933,0.79254,2358.7,2358.5,0.42397]
[1725953381934,0.3686,2358.7,2358.5,0.42397]
[1725953382137,0.3686,2358.7,2358.4,0.42398]
[1725953382337,0.79254,2358.7,2358.4,0.42398]
[1725953382534,0.79254,2358.7,2358.2,43.45]
[1725953382535,0.3686,2358.7,2358.2,43.45]
[1725953382742,0.3686,2358.7,2358.5,0.42397]
[1725953383046,0.3686,2358.7,2358.2,43.45]
[1725953383047,0.3757,2359.1,2358.6,2.65]
[1725953383338,0.79957,2359.1,2358.6,2.65]
[1725953383744,0.3757,2359.1,2358.9,0.42389]
[1725953384035,0.3757,2359.1,2358.9,0.4239]
[1725953384534,0.79957,2359.1,2358.8,0.42391]
[1725953384932,0.3757,2359.1,2358.4,2.65]
[1725953385134,0.42391,2358.9,2358.4,2.65]
[1725953385339,0.4239,2359.0,2358.4,2.65]
[1725953385732,0.4239,2358.9,2358.6,0.42394]
[1725953386045,0.4239,2358.9,2358.4,2.65]
[1725953386046,0.42393,2358.8,2358.5,0.42396]
[1725953386837,0.42394,2358.7,2358.5,0.42396]
[1725953387143,1.05976,2358.9,2358.4,0.42398]
[1725953387346,1.44736,2358.9,2358.2,43.45]
[1725953387738,0.42396,2358.6,2358.3,0.424]
[1725953389141,2.55490062,2358.9,2358.2,41.22402]
[1725953389142,0.7829,2358.5,2358.2,41.22402]
[1725953389331,0.424,2358.4,2358.1,0.42404]
[1725953390040,1.20689,2358.5,2358.2,0.42403]
[1725953390440,1.20688,2358.5,2358.2,0.42403]
[1725953390946,0.42399,2358.4,2358.2,0.42403]
[1725953391144,1.20689,2358.5,2358.2,0.42403]
[1725953391644,0.42399,2358.4,2358.1,0.42403]
[1725953392538,0.424,2358.4,2358.1,0.42403]
[1725953393838,0.424,2358.4,2358.2,0.42402]
[1725953394039,1.84286,2358.5,2357.9,40.8]
[1725953394343,1.84286,2358.5,2357.9,41.22407]
[1725953394344,0.42403,2358.2,2357.9,41.22407]
[1725953394539,0.42403,2358.2,2357.9,0.42407]
[1725953394943,0.42403,2358.2,2358.0,0.42406]
[1725953395142,0.89754062,2358.5,2358.4,0.42399]
[1725953395337,1.42673527,2359.1,2358.7,0.42393]
[1725953395539,1.16458,2359.1,2358.4,2.65]
[1725953395734,0.42389,2359.0,2358.7,0.42392]
[1725953396140,0.42389,2359.0,2358.5,40.8]
[1725953396341,0.7407,2359.1,2358.7,0.42393]
[1725953396549,0.42388,2359.0,2358.7,0.42393]
[1725953398540,0.7407,2359.1,2358.6,0.42394]
[1725953398851,1.80038,2359.1,2358.4,43.45]
[1725953399049,0.42391,2358.9,2358.6,0.42395]
[1725953400246,0.42392,2358.8,2358.5,0.42396]
[1725953400446,0.4239,2358.9,2358.6,0.42394]
[1725953400945,0.42391,2358.9,2358.6,0.42394]
[1725953401146,0.42391,2358.9,2358.5,0.42396]
[1725953401452,0.42391,2358.9,2358.6,0.42395]
[1725953401752,3.46170093,2359.1,2358.5,0.42396]
[1725953401954,0.42394,2358.7,2358.4,0.42398]
[1725953402455,0.3772,2358.6,2358.2,0.42401]
[1725953402748,0.3772,2358.6,2358.1,0.42404]
[1725953402749,0.42401,2358.4,2358.1,0.42404]
[1725953402942,0.3881,2358.5,2358.0,3.07405]
[1725953403147,0.424,2358.4,2358.0,3.07405]
[1725953403342,0.424,2358.4,2358.1,0.42404]
[1725953403845,0.424,2358.4,2358.0,3.07405]
[1725953404048,0.424,2358.4,2358.1,0.42404]
[1725953404654,0.424,2358.4,2357.7,0.5589]
[1725953404655,1.05998,2358.4,2357.7,0.42411]
[1725953404858,1.05998,2358.4,2357.6,2.65]
[1725953404859,2.65,2358.3,2357.8,0.42409]
[1725953405046,0.42405,2358.1,2357.8,0.42409]
[1725953405351,4.70641093,2358.3,2357.6,2.65]
[1725953405352,0.42403,2358.2,2357.6,2.65]
[1725953405550,0.42403,2358.2,2357.7,0.66292996]
[1725953405745,0.42403,2358.2,2357.8,0.42409]
[1725953405944,1.66131093,2358.3,2358.0,2.65]
[1725953406246,2.60318125,2358.5,2358.4,0.42399]
[1725953406247,0.3881,2358.5,2358.4,0.42399]
[1725953406849,0.3881,2358.5,2358.3,0.424]
[1725953407358,0.3881,2358.5,2358.2,0.42402]
[1725953407742,0.42399,2358.4,2358.1,40.8]
[1725953407946,0.3881,2358.5,2358.2,0.42402]
[1725953408145,0.81207,2358.5,2358.1,0.42403]
[1725953408748,0.424,2358.4,2358.0,0.42404]
[1725953408943,1.66131093,2358.5,2358.3,2.65]
[1725953409155,2.44221093,2359.0,2358.4,0.66274215]
[1725953409451,2.76885156,2359.3,2359.1,0.42386]
[1725953409452,5.66881628,2359.3,2359.1,0.42386]
[1725953409658,3.17095156,2359.6,2359.1,4.66225]
[1725953409659,0.3779,2359.5,2359.1,4.66225]
[1725953409848,0.3779,2359.5,2359.1,0.42385]
[1725953410043,3.07384,2359.3,2359.2,0.66256453]
[1725953410250,4.31131093,2359.3,2358.4,3.92218751]
[1725953410558,2.21508125,2359.4,2358.9,0.4239]
[1725953410559,1.66131093,2359.4,2358.9,0.4239]
[1725953410853,0.42382,2359.4,2359.0,0.66260713]
[1725953411043,0.42382,2359.4,2358.9,0.4239]
[1725953411044,1.66131093,2359.4,2358.9,0.4239]
[1725953411255,1.66131093,2359.4,2358.8,2.65]
[1725953411256,1.66131093,2359.4,2358.8,3.07391]
[1725953411551,2.08512093,2359.4,2358.9,0.66260742]
[1725953411753,2.08512093,2359.4,2358.8,3.07391]
[1725953412055,1.66131093,2359.3,2358.9,0.66264264]
[1725953412249,1.66131093,2359.3,2358.8,3.07391]
[1725953412642,1.66131093,2359.4,2358.9,0.66263741]
[1725953412846,1.66131093,2359.4,2359.0,0.66263741]
[1725953413046,2.03921093,2359.5,2359.0,0.42387]
[1725953413251,2.03921093,2359.5,2359.1,0.66258825]
[1725953413252,0.3779,2359.5,2359.1,0.66258825]
[1725953413447,0.3779,2359.5,2359.2,0.66255207]
[1725953413645,0.3779,2359.5,2359.1,0.42386]
[1725953414252,0.3779,2359.5,2359.0,0.42387]
[1725953414554,0.3779,2359.5,2359.1,0.66255974]
[1725953414757,0.8017,2359.5,2358.8,3.74268751]
[1725953414950,2.46301093,2359.5,2358.9,1.08644962]
[1725953415156,2.46301093,2359.5,2359.0,1.08643962]
[1725953415355,2.46301093,2359.5,2358.9,0.42389]
[1725953415557,2.46301093,2359.5,2359.0,0.66259159]
[1725953415864,0.42381,2359.4,2358.9,0.42389]
[1725953416052,2.08513093,2359.4,2358.9,0.4239]
[1725953416554,1.66131093,2359.4,2358.9,0.4239]
[1725953416757,2.08513093,2359.4,2358.9,0.4239]
[1725953417662,2.08513093,2359.4,2359.0,0.42388]
[1725953418851,1.66131093,2359.4,2358.6,2.65]
[1725953419153,2.08513093,2359.4,2359.0,0.42387]
[1725953419360,2.08513093,2359.4,2358.6,2.65]
[1725953419568,2.08513093,2359.4,2359.0,0.42387]
[1725953419759,2.08513093,2359.4,2358.7,1.72279973]
[1725953419760,0.42388,2359.1,2358.5,1.09268751]
[1725953419964,0.42393,2358.8,2358.6,0.66264904]
[1725953420161,0.42393,2358.8,2358.5,0.42396]
[1725953420466,0.3757,2358.7,2358.5,0.42396]
[1725953420652,0.3757,2358.7,2358.2,2.65]
[1725953420653,0.3757,2358.7,2358.6,0.42395]
[1725953420850,2.46840093,2359.0,2358.6,0.66269403]
[1725953420851,0.3832,2359.0,2358.6,0.66269403]
[1725953421061,0.4239,2358.9,2358.5,0.42396]
[1725953421752,2.04451093,2359.0,2358.4,2.65]
[1725953421961,0.42391,2358.9,2358.6,0.42395]
[1725953422164,0.42391,2358.9,2358.5,0.42396]
[1725953422852,2.04451093,2359.0,2358.4,3.07398]
[1725953422853,0.42392,2358.8,2358.4,3.07398]
[1725953423053,2.04451093,2359.0,2358.4,0.42399]
[1725953423253,0.42393,2358.8,2358.4,0.42399]
[1725953423653,0.42396,2358.6,2358.0,3.74268751]
[1725953423857,3.4393,2358.5,2358.1,0.66280245]
[1725953424055,3.4393,2358.5,2358.0,0.42406]
[1725953424056,0.42401,2358.3,2357.7,1.09268751]
[1725953424257,0.424,2358.4,2358.0,0.42405]
[1725953424971,0.7893,2358.5,2358.3,2.65]
[1725953425173,0.7893,2358.5,2358.2,0.42401]
[1725953425372,0.42399,2358.4,2358.1,0.42403]
[1725953425661,0.42399,2358.4,2358.1,0.42404]
[1725953425866,0.42399,2358.4,2357.8,2.65]
[1725953426065,0.42399,2358.4,2358.1,0.42404]
[1725953426460,0.42401,2358.3,2358.0,0.42405]
[1725953426659,0.424,2358.4,2358.1,0.42404]
[1725953427560,1.21328,2358.5,2357.8,2.65]
[1725953427759,1.21328,2358.5,2358.1,0.42403]
[1725953428057,0.7893,2358.5,2358.2,0.42402]
[1725953428552,0.7893,2358.5,2358.0,2.65]
[1725953428751,0.7893,2358.5,2358.3,0.424]
[1725953429152,1.21327,2358.5,2358.2,0.42402]
[1725953429358,0.7893,2358.5,2357.8,2.65]
[1725953429563,1.21329,2358.5,2357.9,1.72343665]
[1725953429870,0.424,2358.4,2358.1,0.42404]
[1725953431561,0.7893,2358.5,2357.8,3.71023]
[1725953431769,0.7893,2358.5,2358.0,2.65]
[1725953431967,1.21327,2358.5,2358.2,0.42402]
[1725953432269,0.7893,2358.5,2358.4,0.42399]
[1725953432465,0.4006,2358.5,2358.3,0.424]
[1725953432874,0.4006,2358.5,2358.0,2.65]
[1725953433062,0.82458,2358.5,2358.2,0.42402]
[1725953434156,0.82458,2358.5,2358.1,0.42403]
[1725953434157,0.42399,2358.4,2358.1,0.42403]
[1725953434359,0.4006,2358.5,2357.8,3.74268751]
[1725953434563,0.42406,2358.1,2357.9,0.6629017]
[1725953434766,2.72129093,2358.4,2357.6,2.65]
[1725953434767,0.3788,2358.0,2357.6,2.65]
[1725953434962,1.66131093,2358.4,2358.2,0.42402]
[1725953435166,0.7794,2358.5,2358.3,0.424]
[1725953435364,1.20338,2358.5,2358.2,0.42402]
[1725953435567,0.7794,2358.5,2358.3,0.424]
[1725953436164,1.20337,2358.5,2358.3,0.42401]
[1725953436366,0.7794,2358.5,2358.1,2.65]
[1725953436560,1.20337,2358.5,2358.3,0.42401]
[1725953436766,1.20337,2358.5,2358.4,0.42399]
[1725953436767,0.7794,2358.5,2358.4,0.42399]
[1725953437162,2.86112093,2358.9,2358.4,4.24]
[1725953437372,0.7759,2358.9,2358.5,3.31273574]
[1725953437670,0.7759,2358.9,2358.6,0.42394]
[1725953437671,1.1998,2358.9,2358.6,0.42394]
[1725953438359,1.1998,2358.9,2358.1,1.09268751]
[1725953438360,0.42394,2358.7,2358.4,0.42398]
[1725953438560,0.42397,2358.6,2358.3,0.42401]
[1725953438874,0.42397,2358.6,2358.3,0.424]
[1725953439062,0.42397,2358.5,2358.3,0.424]
[1725953439259,0.42397,2358.5,2358.2,0.42401]
[1725953439473,0.42397,2358.5,2358.2,0.42403]
[1725953439661,0.3766,2358.4,2358.0,0.42406]
[1725953439862,0.3766,2358.4,2357.7,1.63903126]
[1725953439863,0.42404,2358.2,2358.1,0.66285213]
[1725953440065,0.42407,2358.0,2357.7,0.42411]
[1725953440269,0.42406,2358.1,2357.7,0.42411]
[1725953440471,0.42407,2358.0,2357.7,0.42411]
[1725953442060,0.4241,2357.8,2357.5,41.22414]
[1725953442271,0.3685,2357.7,2357.5,41.22414]
[1725953442479,0.3685,2357.7,2357.6,0.42413]
[1725953444274,0.3685,2357.7,2357.4,40.8]
[1725953444573,0.79262,2357.7,2357.5,0.42414]
[1725953444762,0.79262,2357.7,2357.4,0.42415]
[1725953445172,0.3953,2357.9,2357.6,2.65]
[1725953445474,0.3953,2357.9,2357.7,0.42411]
[1725953446072,0.3953,2357.9,2357.8,0.4241]
[1725953446264,0.3953,2357.9,2357.7,0.42411]
[1725953446470,0.81938,2357.9,2357.6,3.07412]
[1725953446865,0.81938,2357.9,2357.4,2.65]
[1725953447073,0.81938,2357.9,2357.6,0.42413]
[1725953447278,0.81939,2357.9,2357.5,0.42415]
[1725953447475,0.81939,2357.9,2357.6,0.42413]
[1725953448273,0.42411,2357.8,2357.5,0.42414]
[1725953449077,0.42412,2357.7,2357.4,0.42416]
[1725953449279,0.4241,2357.8,2357.5,0.42415]
[1725953449581,0.81939,2357.9,2357.6,0.42413]
[1725953449777,0.4241,2357.8,2357.5,0.42414]
[1725953451582,0.42412,2357.7,2357.2,43.45]
[1725953451780,0.42411,2357.8,2357.5,0.42415]
[1725953451986,0.42411,2357.8,2357.2,43.45]
[1725953451987,0.3953,2357.9,2357.7,0.42411]
[1725953452685,0.3953,2357.9,2357.7,0.42412]
[1725953453182,0.81938,2357.9,2357.6,3.07412]
[1725953453685,0.81939,2357.9,2357.6,3.07413]
[1725953454388,0.4241,2357.8,2357.4,2.65]
[1725953454585,0.4241,2357.8,2357.5,0.42414]
[1725953454885,0.3953,2357.9,2357.4,2.65]
[1725953455083,0.42413,2357.7,2357.4,0.42416]
[1725953455281,3.0453,2357.9,2357.3,0.42418]
[1725953455583,2.65,2357.7,2356.8,3.92228751]
[1725953455783,0.79825,2357.6,2357.3,0.42418]
[1725953455985,0.3917,2357.5,2357.0,2.65]
[1725953456387,0.81586,2357.5,2357.2,0.4242]
[1725953457182,0.42417,2357.4,2357.2,0.4242]
[1725953457384,0.81557,2357.4,2357.2,0.4242]
[1725953457589,0.81557,2357.4,2357.1,0.42421]
[1725953457784,0.4242,2357.3,2357.0,0.42424]
[1725953458276,0.3914,2357.4,2357.0,0.42424]
[1725953458277,0.42421,2357.2,2357.0,0.42424]
[1725953458476,0.42421,2357.2,2356.9,0.42425]
[1725953458685,0.42421,2357.2,2357.0,0.42424]
[1725953458982,2.65,2357.3,2356.8,0.42428]
[1725953459183,2.65,2357.3,2356.8,0.42427]
[1725953459184,0.42424,2357.0,2356.8,0.42427]
[1725953459382,0.42423,2357.1,2356.6,2.65]
[1725953459581,0.4242,2357.3,2357.0,0.42423]
[1725953459987,0.4242,2357.3,2356.7,1.06075]
[1725953460184,0.42421,2357.2,2356.9,0.42425]
[1725953461287,0.42421,2357.2,2357.0,0.42423]
[1725953461494,0.42422,2357.2,2357.0,0.42424]
[1725953461681,0.42422,2357.2,2356.9,0.42425]
[1725953461889,0.42423,2357.1,2356.8,0.42427]
[1725953462086,0.42421,2357.2,2357.0,0.42424]
[1725953462390,0.42421,2357.2,2356.9,0.42425]
[1725953464002,0.3914,2357.4,2356.8,2.65]
[1725953464190,0.3917,2357.5,2357.0,2.65]
[1725953464498,1.66131093,2357.7,2357.6,0.42413]
[1725953464900,1.66131093,2357.7,2357.5,0.42414]
[1725953465297,1.66131093,2357.7,2357.6,0.42413]
[1725953466704,1.66131093,2357.7,2357.6,7.31573]
[1725953468099,1.66131093,2357.7,2357.6,7.97862889]
[1725953468402,0.3984,2358.0,2357.8,0.42409]
[1725953468900,0.3984,2358.0,2357.9,0.42408]
[1725953469103,0.3984,2358.0,2357.8,0.42409]
[1725953469303,0.3984,2358.0,2357.6,2.65]
[1725953469504,0.3984,2358.0,2357.9,0.42408]
[1725953469709,0.3984,2358.0,2357.6,2.65]
[1725953469903,0.3984,2358.0,2357.5,1.27298751]
[1725953469904,0.3984,2358.0,2357.7,41.88700512]
[1725953470100,0.3984,2358.0,2357.8,0.42409]
[1725953470300,0.3984,2358.0,2357.7,40.8]
[1725953470497,4.39390535,2358.3,2357.8,6.8908]
[1725953470809,0.3864,2358.3,2358.2,0.42403]
[1725953471405,0.3864,2358.3,2358.1,0.42403]
[1725953471612,0.3864,2358.3,2357.9,3.07407]
[1725953471902,2.65,2358.2,2357.5,1.09268751]
[1725953472106,2.65,2358.2,2357.6,0.66297521]
[1725953472310,0.42409,2357.9,2357.5,1.51682751]
[1725953472507,0.7521,2357.8,2357.5,1.51683751]
[1725953473009,0.7521,2357.8,2357.6,0.42413]
[1725953473813,0.7521,2357.8,2357.7,0.42412]
[1725953474112,6.09283628,2358.3,2357.6,2.65]
[1725953474413,1.19023,2358.2,2357.8,0.42409]
[1725953474793,0.7662,2358.2,2357.8,0.42409]
[1725953475113,5.66881628,2359.0,2358.2,1.4841]
[1725953475413,1.19009,2359.0,2358.6,0.42395]
[1725953475798,0.7662,2359.0,2358.6,0.42395]
[1725953476101,0.7662,2359.0,2358.5,2.65]
[1725953476302,0.7662,2359.0,2358.6,0.42395]
[1725953476903,1.19009,2359.0,2358.6,0.42395]
[1725953477808,0.42396,2358.6,2358.2,0.42401]
[1725953478006,0.3803,2358.5,2358.3,0.42401]
[1725953478310,1.66131093,2359.2,2358.6,1.05989]
[1725953478609,1.1511,2359.5,2358.9,2.65]
[1725953478912,1.1511,2359.5,2359.2,0.42384]
[1725953479317,1.1511,2359.5,2359.1,3.07385]
[1725953480110,1.1511,2359.5,2358.6,3.26]
[1725953480305,1.1511,2359.5,2358.8,0.4239]
[1725953480609,0.42387,2359.1,2358.6,0.42394]
[1725953480910,1.05953,2359.4,2358.6,0.42394]
[1725953480911,0.81879,2359.0,2358.6,0.42394]
[1725953481112,0.3742,2358.9,2358.7,0.42394]
[1725953481404,0.3742,2358.9,2358.8,0.42392]
[1725953481813,0.3742,2358.9,2358.7,0.42393]
[1725953482004,0.3742,2358.9,2358.6,0.42394]
[1725953482403,0.3742,2358.9,2358.3,44.06]
[1725953482602,0.3949,2359.0,2358.9,0.4239]
[1725953482812,0.3949,2359.0,2358.8,0.42391]
[1725953483014,0.3949,2359.0,2358.7,0.42393]
[1725953483310,0.3949,2359.0,2358.8,0.42392]
[1725953483518,0.3949,2359.0,2358.7,0.42393]
[1725953485203,0.3949,2359.0,2358.3,45.33111006]
[1725953485407,0.3949,2359.0,2358.7,0.42392]
[1725953485602,0.3949,2359.0,2358.8,0.42391]
[1725953486910,0.3949,2359.0,2358.7,0.42393]
[1725953487213,0.3949,2359.0,2358.8,0.42392]
[1725953487406,0.3949,2359.0,2358.3,45.33111006]
[1725953487407,0.3949,2359.0,2358.9,0.4239]
[1725953488817,0.3949,2359.0,2358.5,1.05991]
[1725953488818,0.3949,2359.0,2358.5,1.05994]
[1725953489009,0.3949,2359.0,2358.9,0.4239]
[1725953489611,0.79784,2359.3,2358.4,1.05996]
[1725953489612,0.374,2359.3,2359.0,0.42387]
[1725953489814,1.19283,2359.3,2359.0,0.42387]
[1725953490009,0.769,2359.3,2359.0,0.42387]
[1725953490208,1.19283,2359.3,2359.0,0.42387]
[1725953490409,1.19283,2359.3,2358.9,0.42389]
[1725953491113,0.769,2359.3,2358.7,1.05983]
[1725953491313,0.769,2359.3,2359.1,0.42385]
[1725953491706,4.00750535,2359.8,2359.5,0.42378]
[1725953491911,0.7972,2359.8,2359.5,0.42378]
[1725953492617,0.7972,2359.8,2359.7,0.42376]
[1725953492818,0.7972,2359.8,2359.3,3.26]
[1725953492819,6.09241628,2360.6,2360.1,0.42367]
[1725953493116,6.09241628,2360.6,2359.4,4.2384]
[1725953493117,1.66131093,2360.9,2359.6,3.47673763]
[1725953493314,0.33751737,2361.4,2360.3,3.26]
[1725953493517,0.33751737,2361.4,2360.2,1.05917]
[1725953493518,0.4018,2361.4,2360.8,0.42355]
[1725953493717,0.4018,2361.4,2360.3,40.8]
[1725953493911,1.05869,2361.3,2360.4,0.42362]
[1725953494119,0.42352,2361.1,2360.4,0.42362]
[1725953494321,0.42351,2361.1,2360.4,0.42362]
[1725953494820,0.42352,2361.0,2360.4,0.42362]
[1725953495011,0.4032,2360.9,2360.4,0.42362]
[1725953495509,0.4032,2360.9,2360.5,0.4236]
[1725953495707,0.4032,2360.9,2360.3,40.8]
[1725953495708,0.4032,2360.9,2360.4,0.42362]
[1725953495916,0.4032,2360.9,2360.3,40.8]
[1725953496115,0.3704,2360.8,2360.3,40.8]
[1725953496520,0.3704,2360.8,2360.3,41.22365]
[1725953497118,0.3704,2360.8,2360.3,0.42365]
[1725953497520,0.79396,2360.8,2360.3,0.42365]
[1725953497725,0.79397,2360.8,2360.0,40.8]
[1725953498017,0.3704,2360.8,2360.3,3.26]
[1725953498221,0.3704,2360.8,2360.4,0.42362]
[1725953498427,0.3704,2360.8,2360.4,41.22362]
[1725953498926,0.3704,2360.8,2360.3,0.42364]
[1725953499123,0.79397,2360.8,2360.2,0.42365]
[1725953499318,0.3704,2360.8,2360.2,0.42365]
[1725953499527,0.42358,2360.7,2360.1,0.42367]
[1725953499723,0.42358,2360.7,2360.0,3.26]
[1725953499919,0.42358,2360.7,2360.1,0.42368]
[1725953500225,0.42358,2360.7,2359.7,40.8]
[1725953500226,0.42362,2360.5,2359.7,3.26]
[1725953500425,0.3704,2360.8,2360.0,0.42369]
[1725953500426,0.4236,2360.6,2360.0,0.42369]
[1725953500729,4.00750535,2360.7,2359.7,3.26]
[1725953500928,4.00750535,2360.7,2359.9,0.42371]
[1725953501132,3.26,2360.5,2359.4,0.1804]
[1725953501429,3.26,2360.5,2359.6,0.42376]
[1725953501430,0.42368,2360.2,2359.6,0.42376]
[1725953501730,0.3681,2360.1,2359.6,0.42376]
[1725953502423,0.3681,2360.1,2359.4,0.1804]
[1725953502728,0.3681,2360.1,2359.7,0.42375]
[1725953503120,0.3925,2360.4,2359.9,0.42372]
[1725953503321,0.3925,2360.4,2359.9,0.42371]
[1725953503518,0.3925,2360.4,2360.1,0.42367]
[1725953503923,0.3925,2360.4,2360.2,4.2368]
[1725953504130,0.3925,2360.4,2359.6,3.26]
[1725953504131,0.79169,2360.7,2360.3,4.2368]
[1725953504329,0.3896,2360.6,2360.1,0.42367]
[1725953504532,0.3896,2360.6,2360.2,0.42366]
[1725953504830,0.3896,2360.6,2360.1,0.42368]
[1725953504831,0.8132,2360.6,2360.1,0.42368]
[1725953505135,0.3896,2360.6,2360.1,0.42368]
[1725953505530,0.3896,2360.6,2360.2,41.22366]
[1725953506135,0.3681,2360.7,2360.4,0.42362]
[1725953506327,0.3681,2360.7,2360.1,0.42367]
[1725953506529,0.3681,2360.7,2359.9,3.26]
[1725953506530,0.79169,2360.7,2359.9,3.26]
[1725953506831,0.79169,2360.7,2359.7,40.8]
[1725953506832,0.42361,2360.6,2359.7,40.8]
[1725953507028,0.42361,2360.6,2360.1,0.42368]
[1725953507331,0.42361,2360.6,2360.1,0.42367]
[1725953508527,0.42361,2360.6,2360.2,0.42366]
[1725953508927,0.3681,2360.7,2360.3,3.26]
[1725953509129,4.00750535,2360.9,2360.3,3.26]